bitfinex/quotes_ETHUSD_20251024
["timestamp","ask_amount","ask_price","bid_price","bid_amount"]
[1761322670016,0.4394,3893.1,3892.9,2.5687354]
[1761322670221,0.4394,3893.1,3893.0,2.56871307]
[1761322670622,0.5682,3893.1,3892.9,2.56875935]
[1761322670917,0.4394,3893.1,3892.4,0.002]
[1761322671120,0.1288,3892.9,3892.8,2.56884504]
[1761322671318,3.4438,3892.9,3892.8,2.56884504]
[1761322672541,4.1123,3892.9,3892.7,2.56888997]
[1761322672740,4.1123,3892.9,3892.8,2.56884504]
[1761322673043,0.1288,3892.6,3892.4,2.57109876]
[1761322673241,0.4394,3892.8,3892.6,2.56896861]
[1761322673538,0.4394,3892.8,3892.5,2.56904303]
[1761322673539,0.1288,3892.6,3892.5,2.56904303]
[1761322673708,0.1288,3892.6,3892.4,0.002]
[1761322673903,0.4394,3892.5,3892.4,0.002]
[1761322675038,3.7534,3892.5,3892.4,0.002]
[1761322676300,0.39835,3892.8,3892.4,0.002]
[1761322676497,4.99624176,3892.7,3892.4,0.002]
[1761322677023,0.45,3892.6,3892.4,0.002]
[1761322677232,0.45,3892.6,3892.4,2.57109879]
[1761322677434,3.314,3892.5,3892.4,2.57110903]
[1761322677733,0.50688,3892.8,3892.5,2.5690421]
[1761322677910,3.314,3892.7,3892.5,2.5690421]
[1761322678111,3.314,3892.6,3892.4,0.002]
[1761322678311,3.314,3892.6,3892.5,2.56898372]
[1761322679017,3.314,3892.6,3892.4,0.002]
[1761322679018,3.764,3892.6,3892.4,0.002]
[1761322679204,0.45,3892.5,3892.4,0.002]
[1761322679405,0.45,3892.5,3892.4,2.57110903]
[1761322679927,3.764,3892.5,3892.4,2.57110903]
[1761322680231,0.449998,3892.7,3892.5,2.56903264]
[1761322680405,3.314,3892.6,3892.5,2.56903264]
[1761322681135,0.6791,3892.9,3892.4,0.002]
[1761322681431,1.41524854,3893.3,3892.4,0.002]
[1761322681432,2.0052,3893.2,3892.8,2.56884504]
[1761322681632,3.82088,3893.1,3892.8,2.56884504]
[1761322681835,0.45020537,3893.0,3892.8,2.56884504]
[1761322682035,0.45020537,3893.0,3892.7,2.56889018]
[1761322682407,0.45020537,3893.0,3892.6,2.56895763]
[1761322682634,3.314,3892.9,3892.6,2.56895763]
[1761322683006,0.4476,3892.8,3892.5,2.56902771]
[1761322683318,0.94261854,3892.8,3892.5,2.56902771]
[1761322683918,0.94261854,3892.8,3892.6,2.56896335]
[1761322684411,3.314,3892.7,3892.6,2.56896335]
[1761322684921,3.314,3892.7,3892.6,2.56897703]
[1761322685116,3.4428,3892.7,3892.6,2.56897703]
[1761322685850,3.95638661,3893.6,3892.6,2.56897703]
[1761322685851,0.001,3892.9,3892.6,0.95530169]
[1761322686053,0.001,3892.9,3892.8,2.56884504]
[1761322686250,0.001,3892.9,3892.8,3.00994504]
[1761322686251,3.315,3892.9,3892.8,3.00994504]
[1761322686950,3.315,3892.9,3892.8,8.16148644]
[1761322686951,0.001,3892.9,3892.8,8.16148644]
[1761322687148,3.315,3892.9,3892.8,9.28594636]
[1761322687445,0.001,3892.9,3892.8,10.84114636]
[1761322688608,0.001,3892.9,3892.8,15.99268776]
[1761322688828,0.001,3892.9,3892.8,5.68960496]
[1761322689653,0.5353,3894.9,3892.8,5.68960496]
[1761322689654,0.216,3894.9,3894.8,2.56752593]
[1761322689815,0.3193,3895.2,3893.5,2.56835406]
[1761322690184,0.3193,3895.2,3893.3,16.38687472]
[1761322690185,0.3183,3895.5,3895.0,2.56739409]
[1761322690444,0.90836854,3895.9,3895.3,2.56714362]
[1761322690445,3.313,3895.4,3895.3,2.56714362]
[1761322691143,3.6313,3895.4,3894.6,2.56765185]
[1761322691346,7.30794212,3895.3,3894.3,2.56781927]
[1761322691547,4.12088,3895.3,3894.3,2.56781927]
[1761322691850,4.12088,3895.3,3894.0,2.56798844]
[1761322691851,0.2345,3894.4,3894.0,2.56798844]
[1761322692045,0.2345,3894.4,3893.4,2.76012777]
[1761322692046,3.313,3894.3,3893.5,2.5683832]
[1761322692247,3.313,3894.3,3894.2,2.56792152]
[1761322692411,3.313,3894.3,3893.4,0.1917]
[1761322692610,3.313,3894.3,3894.2,2.56792152]
[1761322692806,3.313,3894.3,3893.4,0.6507]
[1761322693013,3.313,3894.3,3894.1,2.56795269]
[1761322693213,3.313,3894.3,3894.1,2.56796564]
[1761322693428,0.301,3894.2,3894.1,2.56796564]
[1761322694019,3.313,3894.2,3894.1,2.56796564]
[1761322694434,3.7771,3894.2,3894.1,2.56796564]
[1761322695237,4.16179,3894.2,3893.1,0.1917]
[1761322695436,0.97098,3894.1,3893.4,2.56840804]
[1761322695735,0.97098,3894.1,3893.6,2.56826857]
[1761322695736,4.03665921,3894.0,3893.6,2.56826857]
[1761322696069,0.1288,3893.7,3893.6,2.56826857]
[1761322696365,4.49487088,3894.3,3892.5,2.56904303]
[1761322696366,1.14687373,3894.8,3894.2,2.56791886]
[1761322696569,1.14687373,3894.8,3893.2,0.1917]
[1761322696570,0.4657,3894.8,3894.3,2.56779661]
[1761322696747,3.313,3894.4,3894.3,2.56779661]
[1761322697568,0.4657,3894.7,3893.8,2.56818532]
[1761322697864,0.4617,3895.1,3893.7,0.459]
[1761322698069,3.313,3895.0,3893.8,2.56818532]
[1761322698268,3.313,3894.9,3893.8,2.56818532]
[1761322698458,0.4617,3895.0,3893.9,0.459]
[1761322698768,3.312,3894.9,3893.9,0.76171853]
[1761322698966,0.2299,3895.2,3893.9,0.76171853]
[1761322699151,3.312,3895.1,3895.0,2.5673929]
[1761322699352,4.8672,3895.1,3894.9,2.56743764]
[1761322699769,0.2299,3895.2,3895.1,2.56732818]
[1761322699955,3.5419,3895.2,3895.1,2.56732818]
[1761322700162,4.0036,3895.2,3895.1,2.56732818]
[1761322700463,4.0036,3895.2,3894.0,0.1917]
[1761322700464,4.40396,3895.2,3894.0,0.1917]
[1761322700663,0.4617,3895.1,3894.0,0.1917]
[1761322700865,0.4617,3895.1,3894.2,2.56792152]
[1761322701038,0.4617,3895.1,3894.0,0.1917]
[1761322701039,0.63026,3895.2,3895.0,2.56733989]
[1761322701241,0.2299,3895.2,3895.1,2.56732818]
[1761322701652,4.0036,3895.2,3895.1,2.56732818]
[1761322702053,0.6916,3895.2,3895.1,2.56732818]
[1761322702255,4.0036,3895.2,3895.1,2.56732818]
[1761322702802,4.0036,3895.2,3894.2,0.459]
[1761322703100,3.5419,3895.2,3895.0,2.56734338]
[1761322703394,3.94226,3895.2,3895.0,2.56738741]
[1761322703598,3.5419,3895.2,3895.1,2.56732818]
[1761322703880,3.312,3895.2,3895.1,2.56732818]
[1761322704256,3.7691,3895.2,3894.8,2.56752349]
[1761322704446,0.4571,3895.1,3894.9,2.56744229]
[1761322705877,4.0036,3894.9,3894.7,2.56757734]
[1761322706385,0.128,3894.8,3894.7,2.56757734]
[1761322707165,0.5851,3894.8,3894.7,2.56757734]
[1761322707365,0.5851,3894.8,3894.6,2.56763978]
[1761322707578,0.4571,3894.7,3894.6,2.56763978]
[1761322707777,0.5851,3894.7,3894.6,2.56763978]
[1761322708264,0.5851,3894.7,3894.3,2.56784589]
[1761322708583,0.41316,3894.7,3893.4,4.58264753]
[1761322708883,0.50688,3894.8,3894.4,2.56778796]
[1761322709052,0.4571,3894.6,3894.4,2.56778796]
[1761322709386,3.312,3894.5,3894.4,2.56778796]
[1761322709570,3.312,3894.5,3894.3,2.56783741]
[1761322709747,0.4571,3894.6,3894.3,2.56783741]
[1761322710086,3.7681,3894.5,3894.4,2.56778964]
[1761322710553,0.4571,3894.5,3894.4,2.56778964]
[1761322710753,3.7681,3894.5,3893.0,6.17581488]
[1761322710953,3.7681,3894.5,3894.1,2.56794223]
[1761322711168,0.4571,3894.4,3894.1,2.56794223]
[1761322711853,0.4571,3894.4,3893.2,0.1917]
[1761322711854,0.50688,3894.3,3893.2,0.1917]
[1761322712181,0.50688,3894.3,3893.9,2.56811673]
[1761322712488,0.50688,3894.1,3893.8,2.56816183]
[1761322712708,3.311,3894.0,3893.8,2.56816183]
[1761322712982,3.7681,3894.0,3893.9,2.56811936]
[1761322713189,3.311,3894.0,3893.9,2.56811936]
[1761322713384,0.91567373,3894.9,3893.6,2.56831246]
[1761322713385,0.2345,3894.9,3893.6,2.56831723]
[1761322713553,3.311,3894.8,3894.6,2.56762481]
[1761322713751,3.311,3894.8,3894.7,2.56759185]
[1761322713985,0.6916,3894.9,3894.8,2.56752593]
[1761322714185,3.5455,3894.9,3894.8,2.56752593]
[1761322714361,3.5455,3894.9,3894.1,0.87435149]
[1761322714362,3.311,3894.9,3894.1,0.87435149]
[1761322714561,3.311,3894.8,3894.5,2.56772371]
[1761322714761,3.311,3894.8,3894.7,2.56759185]
[1761322714968,0.4571,3895.4,3895.0,2.56737737]
[1761322715207,3.311,3895.3,3895.0,2.56737737]
[1761322715485,3.311,3895.2,3895.0,2.56737737]
[1761322715894,3.311,3895.2,3894.9,2.56743476]
[1761322716198,3.311,3895.2,3894.5,0.459]
[1761322716199,0.50688,3895.3,3894.5,0.459]
[1761322716367,3.311,3895.2,3895.1,2.56732818]
[1761322716587,3.311,3895.2,3894.3,6.63481488]
[1761322716588,3.68781,3895.2,3895.0,2.56738633]
[1761322716841,3.7681,3895.2,3894.8,2.56748339]
[1761322716986,0.6916,3895.1,3894.8,2.56748339]
[1761322717186,0.6916,3895.1,3894.1,0.1917]
[1761322717397,0.68117373,3895.5,3895.1,2.56731597]
[1761322717595,0.50688,3895.3,3894.8,2.56747742]
[1761322717793,3.7549,3895.4,3894.2,2.56792152]
[1761322717794,0.49429537,3895.2,3894.2,2.56792152]
[1761322717994,0.49429537,3895.2,3894.1,0.6581]
[1761322718302,0.93819537,3895.2,3894.8,2.56751209]
[1761322718809,0.49429537,3895.2,3894.9,2.5674466]
[1761322719193,0.128,3895.0,3894.5,2.56771055]
[1761322719387,0.38052954,3895.1,3894.1,0.1917]
[1761322719388,0.128,3894.8,3894.6,2.56765778]
[1761322719584,3.311,3894.9,3894.8,2.56752593]
[1761322719790,0.128,3894.7,3894.1,2.75965234]
[1761322719990,3.311,3894.6,3894.5,2.56772371]
[1761322720204,3.439,3894.6,3894.5,2.56772371]
[1761322721288,3.439,3894.6,3894.4,2.56774826]
[1761322721513,3.7549,3894.6,3894.4,2.56774826]
[1761322721824,0.128,3894.5,3894.4,2.56774826]
[1761322722033,0.128,3894.5,3893.6,0.4664]
[1761322722196,3.7549,3894.6,3894.5,2.56772371]
[1761322722389,3.8829,3894.6,3894.5,2.56772371]
[1761322722688,3.8829,3894.6,3893.7,0.1288]
[1761322722893,0.237,3894.9,3893.2,0.1917]
[1761322722894,0.4439,3894.5,3893.2,6.36751488]
[1761322723123,0.4439,3894.5,3893.5,0.4664]
[1761322723290,0.4439,3894.5,3893.9,2.56805943]
[1761322723494,0.16319537,3894.4,3894.2,2.56788213]
[1761322723698,3.311,3894.3,3893.5,0.4664]
[1761322723932,0.91817373,3894.9,3893.5,0.4664]
[1761322723933,0.4439,3894.6,3894.3,2.56781881]
[1761322724114,3.311,3894.5,3894.2,2.56790145]
[1761322724297,3.75460737,3894.5,3893.5,0.4664]
[1761322724496,4.19850737,3894.5,3894.1,2.56794463]
[1761322724999,3.7549,3894.4,3894.1,2.56794463]
[1761322725321,3.7549,3894.4,3894.1,2.56798069]
[1761322725490,0.4439,3894.4,3894.1,2.56798069]
[1761322725694,0.44360737,3894.5,3894.1,2.56798069]
[1761322725904,3.7549,3894.3,3894.1,2.56798069]
[1761322726134,3.311,3894.2,3894.1,2.56798069]
[1761322726717,0.44360737,3894.5,3893.5,0.4664]
[1761322727035,0.44360737,3894.5,3893.2,8.93608536]
[1761322727036,3.7549,3894.4,3893.9,2.56810785]
[1761322727393,0.4439,3894.3,3893.9,2.56810785]
[1761322727597,0.4439,3894.3,3893.2,8.93608536]
[1761322727792,0.4439,3894.3,3893.9,2.56806907]
[1761322728328,0.4439,3894.3,3893.2,0.1917]
[1761322728529,1.12052323,3894.3,3893.2,0.1917]
[1761322728832,0.50688,3894.2,3893.6,2.5683098]
[1761322729033,0.50688,3894.2,3893.2,0.1917]
[1761322729034,0.95078,3894.2,3893.7,2.56824679]
[1761322729205,0.50688,3894.2,3893.7,2.56824679]
[1761322729527,0.50688,3894.2,3893.5,2.56838302]
[1761322729729,3.311,3894.1,3893.8,2.56816652]
[1761322730033,3.45523503,3894.5,3893.8,2.56812429]
[1761322730034,3.31,3894.0,3893.8,2.56812429]
[1761322730701,3.31,3894.0,3893.9,2.56811936]
[1761322730999,3.311,3894.0,3893.9,2.56811936]
[1761322731200,3.311,3894.0,3893.7,2.56819388]
[1761322731400,3.311,3894.0,3893.8,2.56816787]
[1761322732131,3.311,3894.0,3893.8,2.56814382]
[1761322732438,0.95078,3894.4,3894.0,2.56803564]
[1761322732657,3.70620512,3894.3,3894.0,2.56803564]
[1761322732955,3.31,3894.2,3894.1,2.56796212]
[1761322733325,3.438,3894.2,3894.1,2.56796212]
[1761322733623,3.438,3894.2,3893.4,2.56841607]
[1761322733624,3.438,3894.2,3894.0,2.56804147]
[1761322733825,0.1288,3894.0,3893.9,2.56811936]
[1761322736940,3.4388,3894.0,3893.9,2.56811936]
[1761322737536,3.4388,3894.0,3893.6,2.56830347]
[1761322737537,3.8935,3894.0,3893.8,2.56815378]
[1761322737738,3.31,3894.0,3893.9,2.56811936]
[1761322737942,3.4388,3894.0,3893.9,2.56811936]
[1761322738263,0.1288,3894.0,3893.9,2.56811936]
[1761322738559,3.4388,3894.0,3893.2,0.1917]
[1761322738759,3.7647,3894.0,3893.6,2.56825865]
[1761322738952,0.1288,3893.7,3893.6,2.56825865]
[1761322739158,3.4388,3893.7,3893.6,2.56825865]
[1761322739662,3.8897,3893.7,3893.4,2.56840013]
[1761322739861,3.8897,3893.7,3892.9,0.1308]
[1761322739862,0.1288,3893.5,3892.9,0.002]
[1761322740061,0.1288,3893.1,3893.0,2.56871307]
[1761322740362,3.4388,3893.1,3893.0,2.56871307]
[1761322741644,3.82777,3893.1,3892.9,0.002]
[1761322741851,0.4509,3893.0,3892.9,0.002]
[1761322742053,0.38897,3893.1,3892.9,0.002]
[1761322742238,0.68117373,3893.4,3892.9,0.002]
[1761322742239,3.7609,3893.0,3892.9,0.002]
[1761322742665,3.31,3893.0,3892.9,0.002]
[1761322743137,0.4509,3893.0,3892.9,0.002]
[1761322743337,3.7609,3893.0,3892.9,0.002]
[1761322743934,0.4509,3893.0,3892.9,0.002]
[1761322744247,4.2183658,3893.0,3892.9,0.002]
[1761322744657,0.9083658,3893.0,3892.9,0.002]
[1761322744831,3.7609,3893.0,3892.9,0.002]
[1761322745267,3.31,3893.0,3892.9,2.57077905]
[1761322745451,3.31,3893.0,3892.9,0.002]
[1761322746051,3.7609,3893.0,3892.9,0.002]
[1761322747377,0.4509,3893.0,3892.9,0.002]
[1761322747579,3.7609,3893.0,3892.9,0.002]
[1761322748900,3.31,3893.0,3892.9,2.57077905]
[1761322749103,0.4509,3893.6,3892.9,2.57077905]
[1761322749104,0.50688,3893.5,3893.0,2.56869969]
[1761322749267,3.31,3893.4,3893.0,2.56869969]
[1761322749882,3.31,3893.4,3893.0,2.56870476]
[1761322750307,4.20091939,3893.9,3893.2,2.56858111]
[1761322750308,0.0776,3893.9,3893.2,2.56858111]
[1761322750476,3.31,3893.8,3893.4,2.56840113]
[1761322750907,3.31,3893.8,3893.1,0.6405]
[1761322750908,3.31,3893.8,3893.5,2.56837567]
[1761322751106,3.31,3893.8,3893.6,2.56830116]
[1761322751565,3.31,3893.8,3893.7,2.56825127]
[1761322751876,3.4388,3893.8,3893.6,2.56831068]
[1761322752176,0.001,3894.0,3893.2,0.4488]
[1761322752373,0.001,3894.0,3893.1,0.1917]
[1761322752374,3.31,3893.9,3893.1,0.1917]
[1761322752609,3.31,3893.9,3893.7,2.56824321]
[1761322752803,0.1288,3893.8,3893.7,2.56824321]
[1761322753393,3.4388,3893.8,3893.7,2.56824321]
[1761322754694,3.4388,3893.8,3893.7,3.01704321]
[1761322755214,3.4388,3893.8,3893.7,2.56824321]
[1761322755428,0.001,3894.0,3893.9,2.56811936]
[1761322755574,3.4398,3894.0,3893.9,2.56811936]
[1761322758878,3.4398,3894.0,3893.9,3.01691936]
[1761322759205,3.4388,3894.0,3893.9,2.56811936]
[1761322760313,3.751,3894.0,3893.7,2.5681996]
[1761322760511,0.2177,3893.8,3892.9,0.002]
[1761322760686,0.1288,3893.2,3893.1,2.56863614]
[1761322760891,3.4378,3893.2,3893.1,2.56863614]
[1761322761275,3.4378,3893.2,3892.9,0.002]
[1761322761476,0.1288,3893.0,3892.9,0.002]
[1761322761931,0.1288,3893.0,3892.9,2.57077905]
[1761322762430,3.309,3893.2,3893.1,2.56864709]
[1761322762931,3.4378,3893.2,3893.1,2.56864709]
[1761322763141,3.75,3893.2,3892.9,0.002]
[1761322763292,3.75,3893.2,3892.9,2.5707749]
[1761322763293,0.65598,3893.1,3892.9,2.5707749]
[1761322763496,0.1288,3893.0,3892.9,2.57077745]
[1761322766235,0.1288,3893.0,3892.9,3.01957745]
[1761322767602,0.1288,3893.0,3892.9,2.57077745]
[1761322768799,3.309,3893.2,3893.1,2.56864709]
[1761322769203,3.4378,3893.2,3893.1,2.56864709]
[1761322772333,3.4378,3893.2,3893.0,2.56870145]
[1761322772534,3.4378,3893.2,3893.1,2.56864709]
[1761322772535,3.309,3893.2,3893.1,2.56864709]
[1761322772871,0.1288,3893.0,3892.9,0.002]
[1761322773408,0.441,3893.0,3892.9,0.002]
[1761322774118,0.441,3893.0,3892.9,2.57077905]
[1761322774319,0.1288,3893.0,3892.9,2.57077905]
[1761322775350,0.1288,3893.0,3892.9,0.002]
[1761322775532,0.441,3893.0,3892.9,0.002]
[1761322776115,3.749,3893.0,3892.9,0.002]
[1761322777354,3.4368,3893.0,3892.9,0.002]
[1761322777543,3.4368,3893.0,3892.9,2.57077905]
[1761322778832,3.4368,3893.0,3892.9,0.002]
[1761322779034,4.1239,3893.0,3892.9,0.002]
[1761322781235,3.4368,3893.0,3892.9,2.57077905]
[1761322781446,3.4378,3893.0,3892.9,2.57077905]
[1761322781645,0.1298,3893.0,3892.9,7.71812905]
[1761322781846,3.4378,3893.0,3892.9,8.18452905]
[1761322782336,3.4378,3893.0,3892.9,2.57077905]
[1761322785675,3.309,3893.0,3892.9,3.03717905]
[1761322785859,3.309,3893.0,3892.9,4.15915767]
[1761322787454,3.309,3893.0,3892.9,5.71435767]
[1761322787690,3.309,3893.0,3892.9,10.86170767]
[1761322787935,0.001,3893.0,3892.9,5.71435767]
[1761322788189,0.001,3893.0,3892.9,5.84315767]
[1761322790265,0.001,3893.0,3892.9,4.28795767]
[1761322790969,0.001,3893.0,3892.9,3.82155767]
[1761322791281,0.001,3893.0,3892.9,2.57077905]
[1761322791993,0.1298,3893.0,3892.9,2.57077905]
[1761322796176,0.1298,3893.0,3892.9,3.03717905]
[1761322796377,0.1298,3893.0,3892.9,2.57077905]
[1761322797181,0.1298,3893.0,3892.9,3.03887905]
[1761322797579,0.1298,3893.0,3892.9,8.18622905]
[1761322797971,0.001,3893.0,3892.9,9.26173767]
[1761322799289,0.001,3893.0,3892.9,3.64628767]
[1761322799494,0.001,3893.0,3892.9,2.57077905]
[1761322799896,0.001,3893.0,3892.9,3.03887905]
[1761322800287,0.001,3893.0,3892.9,8.18622905]
[1761322802018,0.001,3893.0,3892.9,8.31502905]
[1761322803984,0.001,3893.0,3892.9,2.69957905]
[1761322804702,0.001,3893.0,3892.9,4.53975767]
[1761322805286,0.001,3893.0,3892.9,7.71595767]
[1761322805585,0.001,3893.0,3892.9,9.39995767]
[1761322805893,0.001,3893.4,3893.3,4.12371514]
[1761322806095,0.001,3893.4,3893.3,13.52961611]
[1761322806418,0.001,3893.4,3893.3,13.99771611]
[1761322806582,0.001,3893.4,3893.3,11.37388984]
[1761322806795,0.001,3893.4,3893.3,14.67888984]
[1761322806990,0.001,3893.4,3893.3,10.90578984]
[1761322807226,0.001,3893.4,3893.3,10.69271611]
[1761322807525,0.001,3893.4,3893.3,10.22461611]
[1761322807734,0.001,3893.4,3893.3,3.39326611]
[1761322807934,0.001,3893.4,3893.3,2.56851514]
[1761322810309,0.4629,3893.4,3893.3,2.56851514]
[1761322812447,0.001,3893.4,3893.3,2.56851514]
[1761322813820,0.4629,3893.4,3893.3,2.56851514]
[1761322818218,0.001,3893.4,3893.3,2.56851514]
[1761322818445,3.7659,3893.4,3893.3,2.56851514]
[1761322819229,4.15537,3893.4,3892.9,0.002]
[1761322819426,0.1288,3893.2,3893.0,0.002]
[1761322819662,0.1288,3893.2,3893.1,2.56864709]
[1761322819820,0.5907,3893.2,3893.1,2.56864709]
[1761322822550,0.1288,3893.2,3893.1,2.56864709]
[1761322823584,0.001,3893.4,3893.3,2.56851514]
[1761322824152,0.459,3893.4,3893.3,2.56851514]
[1761322824558,0.001,3893.4,3893.3,2.56851514]
[1761322825401,0.68495029,3895.3,3893.7,1.5552]
[1761322825558,1.14015029,3896.4,3895.2,6.37009375]
[1761322825755,1.14015029,3896.4,3895.6,6.17839375]
[1761322825756,2.608,3896.2,3895.6,6.17839375]
[1761322826172,2.608,3896.2,3896.1,2.56666923]
[1761322826369,3.0632,3896.2,3895.6,6.17839375]
[1761322826595,3.0632,3896.2,3895.0,0.4318]
[1761322826596,0.2316,3895.7,3894.9,0.77103082]
[1761322826895,0.2316,3895.7,3895.0,2.56733176]
[1761322827083,0.2316,3895.7,3894.3,0.1917]
[1761322827084,1.5552,3895.5,3894.6,2.56765414]
[1761322827267,1.5552,3895.5,3894.1,2.56798746]
[1761322827457,0.4552,3895.4,3894.0,6.17839375]
[1761322827652,0.4552,3895.4,3895.0,2.56736781]
[1761322827653,0.53124,3895.3,3895.0,2.56736781]
[1761322827956,0.53124,3895.3,3894.3,2.56785558]
[1761322828263,0.4552,3895.2,3894.9,2.56744959]
[1761322828476,0.4552,3895.2,3893.7,4.8944651]
[1761322828477,0.50688,3894.9,3893.5,2.5683832]
[1761322828691,3.302,3894.8,3893.5,1.37566135]
[1761322828867,0.50688,3895.1,3893.5,1.37566135]
[1761322828868,0.97898,3895.1,3894.3,2.56779156]
[1761322829069,0.50688,3894.9,3894.3,2.56779156]
[1761322829267,0.50688,3894.9,3893.8,6.17839375]
[1761322829472,0.6891,3894.8,3894.4,2.56778879]
[1761322829797,0.449798,3894.7,3894.4,2.56778879]
[1761322829991,0.919398,3894.7,3894.4,2.56778879]
[1761322830167,0.919398,3894.7,3894.5,2.56772206]
[1761322830373,0.449798,3894.7,3894.6,2.56765778]
[1761322830677,0.4696,3894.6,3894.4,2.56778114]
[1761322831071,0.6339278,3894.6,3894.3,2.56785113]
[1761322831557,0.4696,3894.5,3894.3,2.56785113]
[1761322831757,3.302,3894.4,3894.3,2.56785113]
[1761322832063,3.302,3894.4,3893.6,2.56831388]
[1761322832266,3.302,3894.4,3894.3,2.56785558]
[1761322832490,4.21017258,3894.4,3894.3,2.56785558]
[1761322833198,3.7716,3894.4,3894.3,2.56785558]
[1761322835296,3.8996,3894.4,3894.3,2.56785558]
[1761322837115,3.43,3894.4,3894.3,2.56785558]
[1761322837814,3.429,3894.4,3894.3,2.56785558]
[1761322838415,3.43,3894.4,3894.3,2.56785558]
[1761322838601,4.2087,3894.4,3894.3,2.56785558]
[1761322839113,4.2087,3894.4,3893.3,0.4482]
[1761322839286,0.128,3894.2,3894.1,2.56798746]
[1761322839481,0.128,3894.2,3893.5,2.5683832]
[1761322839482,0.4357,3894.3,3894.2,2.56792152]
[1761322839682,3.7367,3894.3,3894.2,2.56792152]
[1761322839892,0.93747,3894.3,3894.2,2.56792152]
[1761322840085,3.8647,3894.3,3894.2,2.56792152]
[1761322841311,3.429,3894.3,3894.2,2.56792152]
[1761322842418,3.429,3894.3,3894.0,2.56803666]
[1761322842419,0.50688,3894.2,3893.1,0.1917]
[1761322842616,0.565258,3894.1,3893.1,0.1917]
[1761322842916,0.001,3894.4,3893.3,6.17839375]
[1761322842917,0.1288,3893.8,3893.3,6.17839375]
[1761322843094,0.1288,3893.8,3893.7,2.56825127]
[1761322843523,3.4288,3893.8,3893.7,2.56825127]
[1761322844114,0.1288,3893.8,3893.7,2.56825127]
[1761322844296,3.4288,3893.8,3893.7,2.56825127]
[1761322845122,3.8613,3893.8,3893.7,2.56825127]
[1761322845727,3.8613,3893.8,3893.1,0.1917]
[1761322846032,3.8613,3893.8,3893.0,3.01887545]
[1761322846033,0.4325,3893.7,3893.0,0.002]
[1761322846330,0.4325,3893.7,3893.0,2.57069739]
[1761322846504,0.4325,3893.7,3893.2,2.56851678]
[1761322846690,0.424634,3893.6,3893.0,0.002]
[1761322846901,0.424634,3893.6,3893.3,2.5685111]
[1761322847100,0.4325,3893.5,3893.3,2.5685111]
[1761322847337,3.3,3893.4,3893.3,2.56848948]
[1761322847741,3.3,3893.4,3893.0,0.002]
[1761322847742,4.10575,3893.4,3893.0,0.002]
[1761322847942,0.4325,3893.3,3893.0,0.002]
[1761322848239,0.4325,3893.3,3893.0,2.57066525]
[1761322849032,0.4325,3893.3,3893.1,2.56859973]
[1761322849536,0.4325,3893.3,3893.0,0.002]
[1761322849537,2.86638,3893.6,3893.3,2.56851504]
[1761322849724,3.3,3893.5,3893.0,0.002]
[1761322849923,3.3,3893.5,3893.0,2.57065034]
[1761322849924,3.7325,3893.5,3893.0,2.57065034]
[1761322850135,0.4325,3893.4,3893.0,2.57065034]
[1761322850345,0.648903,3893.3,3893.0,0.002]
[1761322850545,0.648903,3893.3,3893.0,2.57071251]
[1761322850843,0.4325,3893.2,3893.0,0.002]
[1761322851136,3.3,3893.1,3893.0,0.002]
[1761322851502,3.7325,3893.1,3893.0,0.002]
[1761322852155,4.1706403,3893.1,3893.0,0.002]
[1761322855161,0.8706403,3893.1,3893.0,0.002]
[1761322855333,4.1706403,3893.1,3893.0,0.002]
[1761322855955,4.2994403,3893.1,3893.0,0.002]
[1761322858058,7.37496739,3893.1,3893.0,0.002]
[1761322858236,8.93016739,3893.1,3893.0,0.002]
[1761322859759,5.63016739,3893.1,3893.0,0.002]
[1761322859944,10.85716739,3893.1,3893.0,0.002]
[1761322861780,8.2885203,3893.1,3893.0,0.002]
[1761322861972,4.9885203,3893.1,3893.0,0.002]
[1761322862143,10.85716739,3893.1,3893.0,0.002]
[1761322862566,8.2885203,3893.1,3893.0,0.002]
[1761322862940,10.85716739,3893.1,3893.0,0.002]
[1761322863140,8.2885203,3893.1,3893.0,0.002]
[1761322863578,1.9933403,3893.1,3893.0,0.002]
[1761322863781,4.8552,3893.1,3893.0,0.002]
[1761322863978,1.5552,3893.1,3893.0,2.57071307]
[1761322864158,4.8552,3893.1,3893.0,2.57071307]
[1761322864659,4.8552,3893.1,3893.0,0.002]
[1761322864848,4.8552,3893.1,3893.0,2.57071307]
[1761322865974,4.8552,3893.1,3893.0,0.002]
[1761322866176,6.2801,3893.1,3893.0,0.002]
[1761322869391,8.84874709,3893.1,3893.0,0.002]
[1761322869692,2.5476,3893.1,3893.0,0.002]
[1761322869858,0.001,3893.6,3893.2,2.56852106]
[1761322870064,3.299,3893.5,3893.3,2.56846301]
[1761322870282,3.299,3893.5,3893.4,2.56844917]
[1761322871692,0.50688,3893.4,3893.0,0.002]
[1761322872119,3.07535434,3893.4,3893.0,0.002]
[1761322872282,3.07533575,3893.4,3893.0,0.002]
[1761322872482,0.93938,3893.4,3893.0,0.002]
[1761322872682,0.4325,3893.3,3893.0,0.002]
[1761322872890,3.299,3893.2,3893.0,0.002]
[1761322873304,3.7315,3893.2,3893.0,0.002]
[1761322873505,0.1288,3893.1,3893.0,0.002]
[1761322873708,0.5613,3893.1,3893.0,0.002]
[1761322874120,3.31694423,3893.1,3893.0,0.002]
[1761322874319,5.88559132,3893.1,3893.0,0.002]
[1761322874525,3.31694423,3893.1,3893.0,0.002]
[1761322874815,5.88559132,3893.1,3893.0,0.002]
[1761322876922,3.31694423,3893.1,3893.0,0.002]
[1761322877108,1.928,3893.6,3893.0,0.002]
[1761322877307,3.299,3893.5,3893.0,2.5707076]
[1761322877509,2.06208,3893.4,3893.0,2.5707076]